fUSD/lending_fUSD_20250225
["ID","MTS","AMOUNT","RATE_DAILY","PERIOD"]
[354444921,1740501047995,-45965.6302879,0.0003449,3]
[354444922,1740501048007,-41708.2899973,0.0003449,3]
[354444923,1740501048016,-6566.51861256,0.00034495,3]
[354444924,1740501048026,-6951.38166622,0.00034495,3]
[354444925,1740501048036,-14999.99,0.000345,120]
[354444926,1740501048046,-15000.0,0.000345,120]
[354444927,1740501048057,-14999.99,0.000345,120]
[354444928,1740501048067,-15000.0,0.000345,120]
[354444929,1740501048076,-14999.99,0.000345,120]
[354444930,1740501048086,-15000.0,0.000345,120]
[354444931,1740501048097,-14999.99,0.000345,120]
[354444932,1740501048107,-15000.0,0.000345,120]
[354444933,1740501048117,-881.87,0.000345,120]
[354444934,1740501048126,-6566.51861256,0.000345,3]
[354444935,1740501048136,-6951.38166622,0.000345,3]
[354444936,1740501048146,-15000.0,0.00034505,120]
[354444938,1740501048157,-13391.5,0.0003451,120]
[354444940,1740501048166,-13133.0372251,0.00034628,3]
[354444942,1740501048176,-13902.7633324,0.00034628,3]
[354444944,1740501048186,-6951.38166622,0.0003464,3]
[354444946,1740501048196,-7475.96,0.00034649,2]
[354444948,1740501048207,-349.4,0.00034649,2]
[354444950,1740501048217,-6566.51861256,0.00034728,3]
[354444952,1740501048228,-6566.51861256,0.00034728,3]
[354444954,1740501048238,-6951.38166622,0.00034728,3]
[354444956,1740501048249,-2377.584,0.00034738,39]
[354444958,1740501048261,-165.611,0.00034738,39]
[354444960,1740501048273,-12843.09905178,0.00034738,2]
[354444962,1740501048283,-13133.0372251,0.0003489,3]
[354444964,1740501048294,-13902.7633324,0.0003489,3]
[354444966,1740501048304,-25973.07656699,0.000349,2]
[354444968,1740501048314,-600.0,0.000349,12]
[354444970,1740501048324,-1094.66883388,0.000349,15]
[354444972,1740501048334,-2647.3556566,0.00035,120]
[354444974,1740501048344,-300.34316867,0.00035,5]
[354444976,1740501048355,-304.61709643,0.00035473,5]
[354444978,1740501048366,-500.0,0.00035473,5]
[354444980,1740501048377,-150.76,0.00035479,2]
[354444982,1740501048388,-238.34395383,0.00035488,71]
[354444984,1740501048398,-3168.69323068,0.00035488,25]
[354444986,1740501048409,-98497.7791884,0.00035489,3]
[354444988,1740501048420,-125124.869992,0.00035489,3]
[354444990,1740501048429,-254656.88286242,0.00035499,2]
[354444992,1740501048439,-641.0,0.00035839,2]
[354444994,1740501048449,-896.16789456,0.000359,120]
[354444996,1740501048459,-1017.19142581,0.000365,120]
[354444997,1740501048468,-150.0,0.00036552,30]
[354444999,1740501048479,-150.0,0.00036552,30]
[354445001,1740501048488,-150.0,0.00036552,30]
[354445003,1740501048498,-667.56276471,0.00036552,30]
[354445015,1740501048510,-341.57864934,0.00036552,30]
[354445017,1740501048621,-1897.24731364,0.00036552,30]
[354445019,1740501048631,-150.0,0.00036552,30]
[354445021,1740501048641,-1776.92833834,0.00036552,30]
[354445023,1740501048652,-550.5,0.00037186,2]
[354445025,1740501048662,-1860.587,0.00037381,2]
[354445027,1740501048671,-1568.1875,0.00037381,2]
[354445029,1740501048681,-6951.38166622,0.00037471,3]
[354445031,1740501048691,-10004.29077031,0.0003748,2]
[354445033,1740501048701,-972.0,0.000376,3]
[354445035,1740501048711,-156.87,0.00037863,2]
[354445037,1740501048721,-419.38,0.00038,2]
[354445039,1740501048731,-359.2506063,0.00038141,2]
[354445041,1740501048740,-2000.0,0.00038209,120]
[354445043,1740501048750,-150.0,0.00038239,2]
[354445045,1740501048761,-3870.447,0.00038239,2]
[354445047,1740501048771,-5550.0,0.000384,5]
[354445049,1740501048781,-500.0,0.0003845,5]
[354445051,1740501048790,-641.0,0.00038839,2]
[354445053,1740501048799,-676.62,0.00038846,120]
[354445055,1740501048809,-2045.8616,0.000389,2]
[354445057,1740501048818,-502.84560114,0.000389,30]
[354445059,1740501048828,-25262.66624143,0.00039,120]
[354445061,1740501048837,-150.0,0.00039,2]
[354445062,1740501048847,-317.19166849,0.00039219,2]
[354445064,1740501048856,-487.38,0.00039242,2]
[354445066,1740501048866,-500.0,0.00039266,2]
[354445068,1740501048875,-250.0,0.00039418,2]
[354445070,1740501048885,-550.5,0.0003945,2]
[354445072,1740501048894,-380.0,0.00039836,2]
[354445074,1740501048908,-364.411,0.00039849,120]
[354445076,1740501048917,-13816.53155603,0.000399,30]
[354445078,1740501048926,-244.11005648,0.00039933,2]
[354445080,1740501048936,-3869.60669198,0.0004,120]
[354445082,1740501048947,-230.05426788,0.00040371,12]
[354445084,1740501048959,-150.0,0.00040383,2]
[354445086,1740501048969,-161.45,0.00040616,2]
[354445088,1740501048979,-500.63280225,0.00040952,5]
[354445090,1740501048989,-1346.39,0.00040995,30]
[354445092,1740501048999,-1346.39,0.00040995,30]
[354445094,1740501049011,-1346.39,0.00040995,30]
[354445096,1740501049021,-1346.39,0.00040995,30]
[354445098,1740501049030,-262.66,0.00041,7]
[354445100,1740501049040,-178.24,0.00041054,2]
[354445102,1740501049049,-200.0,0.00041102,120]
[354445104,1740501049059,-150.0,0.00041239,2]
[354445106,1740501049069,-1346.39,0.00041269,30]
[354445108,1740501049079,-1346.39,0.00041269,30]
[354445110,1740501049089,-3519.2957875,0.00041369,14]
[354445112,1740501049098,-2252.05188292,0.000415,15]
[354445114,1740501049107,-1346.39,0.00041543,30]
[354445116,1740501049117,-1346.39,0.00041543,30]
[354445118,1740501049126,-550.5,0.00041714,2]
[354445120,1740501049136,-1346.39,0.00041817,30]
[354445122,1740501049146,-1346.39,0.00041817,30]
[354445124,1740501049155,-8916.11081486,0.00042,2]
[354445126,1740501049165,-1630.47901605,0.00042,120]
[354445128,1740501049174,-579.0,0.00042,2]
[354445130,1740501049184,-1322.19988268,0.0004201,2]
[354445132,1740501049194,-1346.39,0.00042091,30]
[354445134,1740501049203,-1346.39,0.00042091,30]
[354445136,1740501049214,-2252.05188283,0.00042211,15]
[354445138,1740501049225,-1346.39,0.00042365,30]
[354445140,1740501049235,-1346.39,0.00042365,30]
[354445142,1740501049245,-500.0,0.00042373,120]
[354445144,1740501049256,-500.0,0.00042385,120]
[354445146,1740501049266,-2000.0,0.00042385,120]
[354445148,1740501049276,-500.0,0.00042385,120]
[354445150,1740501049285,-397.2509,0.00042539,2]
[354445151,1740501049295,-462.3047,0.00042539,2]
[354445153,1740501049304,-200.0,0.00042543,120]
[354445155,1740501049314,-1346.39,0.00042639,30]
[354445157,1740501049325,-1346.39,0.00042639,30]
[354445159,1740501049334,-1346.39,0.00042913,30]
[354445161,1740501049344,-1346.39,0.00042913,30]
[354445163,1740501049354,-2252.05188283,0.00042922,15]
[354445165,1740501049364,-163.0,0.00043,90]
[354445167,1740501049373,-2331.18438095,0.00043,30]
[354445169,1740501049383,-178.24,0.00043107,2]
[354445171,1740501049392,-1346.39,0.00043187,30]
[354445173,1740501049402,-1346.39,0.00043187,30]
[354445175,1740501049411,-1346.39,0.00043461,30]
[354445177,1740501049422,-1346.39,0.00043461,30]
[354445179,1740501049432,-314.47470015,0.000435,120]
[354445181,1740501049441,-212.1125592,0.0004358,4]
[354445183,1740501049451,-2252.05188283,0.00043633,15]
[354445185,1740501049460,-676.62,0.00043701,120]
[354445187,1740501049470,-1346.39,0.00043735,30]
[354445189,1740501049479,-1346.39,0.00043735,30]
[354445191,1740501049489,-1000.0,0.00043763,2]
[354445192,1740501049498,-900.0,0.000439,16]
[354445194,1740501049509,-1000.0,0.00043929,10]
[354445196,1740501049518,-333.33333333,0.00043945,30]
[354445198,1740501049528,-300.0,0.0004397,3]
[354445200,1740501049538,-433.47127273,0.0004397,3]
[354445202,1740501049548,-550.5,0.00043978,2]
[354445204,1740501049558,-500.0,0.00043985,120]
[354445206,1740501049567,-2000.0,0.00043985,120]
[354445208,1740501049577,-500.0,0.00043985,120]
[354445210,1740501049586,-500.0,0.00043985,120]
[354445212,1740501049595,-200.0,0.00043985,120]
[354445214,1740501049605,-433.00702,0.0004403,49]
[354445216,1740501049614,-333.33333333,0.00044164,30]
[354445218,1740501049623,-950.0,0.00044167,120]
[354445220,1740501049632,-432.312861,0.00044249,2]
[354445222,1740501049641,-2252.05188283,0.00044344,15]
[354445223,1740501049650,-333.33333333,0.00044356,30]
[354445225,1740501049659,-8047.1289,0.00044399,2]
[354445227,1740501049669,-168700.4991,0.00044399,2]
[354445230,1740501049682,-1177.6636,0.00044399,2]
[354445231,1740501049691,-7500.0,0.00044399,3]
[354445233,1740501049700,-380.0,0.000444,3]
[354445235,1740501049710,-517.80414,0.00044421,2]
[354445237,1740501049719,-1470.009837,0.00044421,2]
[354445239,1740501049729,-251.95164379,0.00044421,2]
[354445241,1740501049738,-150.76,0.00044489,2]
[354445243,1740501049748,-150.76,0.0004449,2]
[354445245,1740501049760,-150.76,0.0004449,2]
[354445247,1740501049770,-280071.88545368,0.00044499,7]
[354445249,1740501049779,-151.0,0.000445,14]
[354445251,1740501049789,-151.0,0.000445,14]
[354445253,1740501049798,-151.0,0.000445,14]
[354445255,1740501049807,-1000000.0,0.000445,120]
[354445257,1740501049816,-175.55036567,0.00044521,30]
[354445259,1740501049826,-333.33333333,0.00044575,30]
[354445261,1740501049836,-50354.80289283,0.0004462,2]
[354445263,1740501049846,-333.33333333,0.00044795,30]
[354445265,1740501049856,-1200.0,0.000448,16]
[354445267,1740501049865,-163.0,0.00044877,90]
[354445269,1740501049874,-203.64923657,0.000449,17]
[354445280,1740501049884,-1500.0,0.000449,16]
[354445282,1740501049984,-150.76,0.0004499,2]
[354445284,1740501049994,-150.76,0.0004499,2]
[354445286,1740501050004,-150.76,0.0004499,2]
[354445288,1740501050015,-999.0,0.00044999,120]
[354445289,1740501050024,-50000.0,0.00045,45]
[354445291,1740501050034,-2411.0,0.00045,7]
[354445293,1740501050043,-151.0,0.00045,14]
[354445295,1740501050052,-151.0,0.00045,14]
[354445297,1740501050061,-151.0,0.00045,14]
[354445299,1740501050070,-1131.93,0.00045,90]
[354445301,1740501050079,-1500000.0,0.00045,120]
[354445303,1740501050088,-500000.0,0.00045,120]
[354445305,1740501050097,-333.33333333,0.00045014,30]
[354445307,1740501050106,-2252.05188283,0.00045056,15]
[354445309,1740501050115,-175.55036567,0.00045123,30]
[354445311,1740501050124,-178.24,0.00045159,2]
[354445313,1740501050133,-333.33333333,0.00045205,120]
[354445315,1740501050142,-768.66840781,0.00045222,20]
[354445317,1740501050151,-10302.35858066,0.00045222,10]
[354445319,1740501050160,-333.33333333,0.00045425,120]
[354445321,1740501050169,-151.0,0.000455,14]
[354445323,1740501050178,-151.0,0.000455,14]
[354445325,1740501050187,-151.0,0.000455,14]
[354445327,1740501050197,-333.33333333,0.00045644,120]
[354445329,1740501050207,-175.55036567,0.00045699,120]
[354445331,1740501050216,-2252.05188283,0.00045767,15]
[354445333,1740501050226,-333.33333333,0.00045863,120]
[354445335,1740501050236,-300.0,0.000459,16]
[354445337,1740501050245,-150.76,0.0004599,2]
[354445339,1740501050254,-50000.0,0.00046,46]
[354445340,1740501050263,-1000000.0,0.00046,120]
[354445342,1740501050272,-151.0,0.00046,14]
[354445344,1740501050281,-151.0,0.00046,14]
[354445346,1740501050290,-1000000.0,0.00046,120]
[354445348,1740501050299,-1854.29370821,0.00046,120]
[354445350,1740501050309,-333.33333333,0.00046055,120]
[354445352,1740501050318,-203.64923657,0.00046076,22]
[354445354,1740501050328,-550.5,0.00046242,2]
[354445356,1740501050338,-175.55036567,0.00046274,120]
[354445358,1740501050347,-333.33333333,0.00046274,120]
[354445360,1740501050357,-230.05426788,0.00046314,18]
[354445362,1740501050366,-2252.05188283,0.00046478,15]
[354445364,1740501050376,-151.0,0.000465,14]
[354445366,1740501050385,-151.0,0.000465,14]
[354445368,1740501050394,-433.00702,0.0004653,58]
[354445370,1740501050404,-20018.95033266,0.000467,31]
[354445372,1740501050413,-200.0,0.0004689,120]
[354445374,1740501050422,-50000.0,0.00047,47]
[354445376,1740501050431,-1000000.0,0.00047,120]
[354445378,1740501050441,-151.0,0.00047,14]
[354445380,1740501050450,-151.0,0.00047,14]
[354445382,1740501050459,-1000000.0,0.00047,120]
[354445384,1740501050468,-150.0,0.0004705,7]
[354445386,1740501050477,-165.0,0.00047121,90]
[354445388,1740501050487,-2252.05188283,0.00047189,15]
[354445390,1740501050496,-500.0,0.00047209,120]
[354445392,1740501050507,-983.116871,0.00047209,120]
[354445394,1740501050516,-500.0,0.00047209,120]
[354445396,1740501050526,-178.24,0.00047212,2]
[354445398,1740501050535,-500.0,0.00047233,120]
[354445400,1740501050548,-203.64923657,0.00047251,27]
[354445403,1740501050570,-150.0,0.00047418,7]
[354445406,1740501050586,-151.0,0.000475,14]
[354445409,1740501050605,-284.334632,0.000475,14]
[354445412,1740501050624,-150.0,0.00047557,7]
[354445414,1740501050639,-5199.6360274,0.000476,2]
[354445417,1740501050660,-517.80414,0.00047703,2]
[354445421,1740501050682,-6838.55839866,0.00047703,2]
[354445424,1740501050702,-1470.00983698,0.00047703,2]
[354445426,1740501050720,-251.95164378,0.00047703,2]
[354445429,1740501050739,-150.0,0.00047714,7]
[354445432,1740501050761,-150.0,0.00047737,7]
[354445435,1740501050775,-150.0,0.00047795,7]
[354445438,1740501050796,-212.1125592,0.00047796,4]
[354445440,1740501050809,-150.0,0.00047807,7]
[354445443,1740501050827,-150.0,0.00047813,7]
[354445445,1740501050842,-151.89989273,0.00047818,14]
[354445448,1740501050856,-150.0,0.00047878,7]
[354445450,1740501050870,-150.0,0.00047882,7]
[354445453,1740501050884,-150.0,0.00047883,7]
[354445455,1740501050900,-150.0,0.00047897,7]
[354445458,1740501050918,-2252.05188283,0.000479,15]
[354445460,1740501050934,-161.48457361,0.000479,28]
[354445462,1740501050949,-150.0,0.00047929,7]
[354445463,1740501050965,-150.0,0.00047941,7]
[354445464,1740501050980,-150.0,0.00047943,7]
[354445465,1740501050995,-1000.0,0.0004798,14]
[354445466,1740501051011,-150.0,0.00047996,7]
[354445467,1740501051027,-50000.0,0.00048,48]
[354445468,1740501051043,-1044.20057842,0.00048,120]
[354445469,1740501051059,-1000000.0,0.00048,120]
[354445470,1740501051075,-151.0,0.00048,14]
[354445471,1740501051091,-150.0,0.00048001,14]
[354445472,1740501051106,-1000.0,0.00048015,14]
[354445473,1740501051121,-152.97747239,0.00048016,14]
[354445475,1740501051136,-1000.0,0.00048023,14]
[354445477,1740501051152,-1000.0,0.00048029,14]
[354445479,1740501051168,-150.0,0.00048031,14]
[354445482,1740501051184,-150.0,0.00048031,7]
[354445484,1740501051199,-150.0,0.00048039,7]
[354445487,1740501051214,-150.0,0.00048041,14]
[354445489,1740501051230,-1000.0,0.00048044,14]
[354445492,1740501051245,-1000.0,0.00048051,14]
[354445494,1740501051259,-1000.0,0.00048051,14]
[354445497,1740501051274,-1000.0,0.00048051,14]
[354445499,1740501051288,-1000.0,0.0004806,14]
[354445502,1740501051303,-150.0,0.00048071,7]
[354445504,1740501051319,-150.0,0.00048094,7]
[354445507,1740501051333,-1000.0,0.00048095,14]
[354445509,1740501051348,-150.0,0.00048096,7]
[354445511,1740501051363,-1000.0,0.00048099,14]
[354445514,1740501051377,-150.0,0.00048103,7]
[354445516,1740501051392,-150.0,0.00048103,7]
[354445519,1740501051407,-1000.0,0.00048104,14]
[354445521,1740501051422,-150.0,0.00048106,7]
[354445524,1740501051436,-150.0,0.00048111,7]
[354445526,1740501051451,-150.0,0.00048115,7]
[354445529,1740501051466,-150.0,0.00048126,14]
[354445531,1740501051481,-150.0,0.00048128,7]
[354445546,1740501051606,-150.0,0.0004813,14]
[354445549,1740501051641,-2000.0,0.00048131,3]
[354445551,1740501051651,-2000.0,0.00048131,3]
[354445553,1740501051660,-150.0,0.00048134,7]
[354445555,1740501051670,-150.0,0.00048138,7]
[354445557,1740501051679,-150.0,0.00048145,7]
[354445559,1740501051687,-150.0,0.00048154,7]
[354445560,1740501051697,-1000.0,0.00048156,14]
[354445562,1740501051706,-150.0,0.00048157,7]
[354445564,1740501051715,-150.0,0.00048158,7]
[354445566,1740501051724,-150.0,0.0004816,7]
[354445568,1740501051733,-150.0,0.0004816,7]
[354445570,1740501051742,-150.0,0.00048162,7]
[354445572,1740501051751,-150.0,0.00048165,7]
[354445574,1740501051761,-150.0,0.00048166,7]
[354445576,1740501051770,-1000.0,0.00048169,14]
[354445578,1740501051779,-150.0,0.00048174,14]
[354445580,1740501051790,-150.0,0.00048177,14]
[354445582,1740501051799,-150.0,0.0004818,7]
[354445584,1740501051809,-1000.0,0.00048182,14]
[354445586,1740501051818,-150.0,0.00048183,7]
[354445588,1740501051828,-1000.0,0.00048183,14]
[354445590,1740501051839,-150.0,0.00048185,7]
[354445592,1740501051848,-150.0,0.00048187,7]
[354445594,1740501051857,-1000.0,0.0004819,14]
[354445596,1740501051866,-150.0,0.00048201,7]
[354445598,1740501051875,-150.0,0.00048206,7]
[354445600,1740501051884,-150.0,0.00048207,14]
[354445602,1740501051893,-150.0,0.00048207,7]
[354445603,1740501051903,-150.0,0.00048209,7]
[354445605,1740501051914,-150.0,0.0004821,14]
[354445607,1740501051924,-150.0,0.0004821,14]
[354445609,1740501051933,-150.0,0.00048218,7]
[354445611,1740501051942,-150.0,0.00048223,7]
[354445613,1740501051952,-150.0,0.00048224,7]
[354445615,1740501051962,-150.0,0.00048232,14]
[354445617,1740501051971,-150.0,0.00048237,7]
[354445619,1740501051980,-150.0,0.00048242,7]
[354445621,1740501051993,-500.0,0.00048243,2]
[354445623,1740501052003,-500.0,0.00048243,2]
[354445625,1740501052014,-500.0,0.00048243,2]
[354445627,1740501052023,-500.0,0.00048243,2]
[354445629,1740501052031,-500.0,0.00048243,2]
[354445631,1740501052040,-500.0,0.00048243,2]
[354445633,1740501052050,-500.0,0.00048243,2]
[354445635,1740501052060,-500.0,0.00048243,2]
[354445637,1740501052069,-500.0,0.00048243,2]
[354445639,1740501052079,-500.0,0.00048243,2]
[354445641,1740501052089,-500.0,0.00048243,2]
[354445643,1740501052098,-500.0,0.00048243,2]
[354445645,1740501052107,-500.0,0.00048243,2]
[354445647,1740501052116,-500.0,0.00048243,2]
[354445649,1740501052125,-862.0,0.00048243,2]
[354445651,1740501052134,-150.0,0.00048247,14]
[354445653,1740501052143,-150.0,0.00048248,7]
[354445655,1740501052152,-150.0,0.00048249,7]
[354445657,1740501052162,-150.0,0.0004826,7]
[354445659,1740501052171,-150.0,0.00048264,7]
[354445661,1740501052179,-150.0,0.00048269,7]
[354445663,1740501052189,-150.0,0.00048272,7]
[354445665,1740501052198,-150.0,0.00048274,7]
[354445666,1740501052207,-150.0,0.00048282,7]
[354445668,1740501052217,-150.0,0.00048283,7]
[354445670,1740501052226,-162.75,0.00048287,120]
[354445672,1740501052236,-150.0,0.00048289,7]
[354445674,1740501052245,-150.0,0.0004829,7]
[354445676,1740501052256,-150.0,0.00048292,7]
[354445678,1740501052265,-150.0,0.00048293,7]
[354445680,1740501052275,-150.0,0.00048298,7]
[354445682,1740501052284,-150.0,0.000483,7]
[354445684,1740501052293,-150.0,0.00048301,7]
[354445686,1740501052303,-150.0,0.00048301,7]
[354445688,1740501052312,-150.0,0.00048303,7]
[354445690,1740501052321,-150.0,0.00048304,7]
[354445692,1740501052330,-150.0,0.00048314,7]
[354445694,1740501052339,-150.0,0.00048315,7]
[354445696,1740501052348,-150.0,0.00048323,7]
[354445698,1740501052357,-150.0,0.00048324,7]
[354445700,1740501052366,-150.0,0.00048325,7]
[354445702,1740501052375,-150.0,0.00048327,7]
[354445704,1740501052384,-150.0,0.00048328,7]
[354445706,1740501052393,-150.0,0.00048329,7]
[354445708,1740501052402,-150.0,0.00048331,7]
[354445709,1740501052411,-150.0,0.00048333,7]
[354445711,1740501052420,-150.0,0.00048342,7]
[354445713,1740501052430,-150.0,0.00048344,7]
[354445715,1740501052439,-199.07279317,0.00048347,7]
[354445717,1740501052448,-150.0,0.00048347,7]
[354445719,1740501052457,-150.0,0.00048347,7]
[354445721,1740501052466,-300.0,0.00048351,7]
[354445723,1740501052475,-150.0,0.00048352,7]
[354445725,1740501052485,-150.0,0.00048354,7]
[354445727,1740501052494,-150.0,0.00048355,7]
[354445729,1740501052503,-150.0,0.00048363,7]
[354445731,1740501052515,-150.0,0.00048365,7]
[354445733,1740501052524,-150.0,0.00048366,7]
[354445735,1740501052533,-300.0,0.0004837,3]
[354445737,1740501052543,-400.0,0.0004837,3]
[354445739,1740501052552,-203.64923657,0.00048427,32]
[354445741,1740501052562,-151.0,0.000485,14]
[354445743,1740501052571,-550.5,0.00048506,2]
[354445745,1740501052580,-676.62,0.00048557,120]
[354445747,1740501052590,-151.465907,0.00048714,30]
[354445749,1740501052600,-156.87,0.00048877,2]
[354445751,1740501052609,-300.0,0.000489,17]
[354445753,1740501052618,-10000.0,0.0004896,30]
[354445755,1740501052627,-50000.0,0.00049,49]
[354445757,1740501052636,-26287.96916206,0.00049,120]
[354445759,1740501052646,-250.3621566,0.00049,14]
[354445761,1740501052655,-650252.55527128,0.00049,120]
[354445763,1740501052672,-348.547565,0.00049,120]
[354445866,1740501127044,151.0,0.00023,30]
[354445869,1740501425949,151.0,0.00023,30]
[354445890,1740502232443,-156.97,0.00013699,2]
[354445891,1740502232453,-680.0,0.000172,2]
[354445892,1740502232464,-160.12704013,0.00018273,2]
[354445893,1740502232474,-550.0,0.00021,2]
[354445894,1740502232484,-234.66121932,0.00022066,2]
[354445895,1740502232494,-174.03980277,0.00022166,2]
[354445896,1740502232504,-335.87653864,0.00022166,2]
[354445897,1740502232514,-234.6612193,0.0002275,2]
[354445898,1740502232524,-414.51036443,0.0002285,2]
[354445899,1740502232533,-600.0,0.00023,2]
[354445900,1740502232543,-184.2,0.00024369,30]
[354445901,1740502232553,-1902.067,0.00024369,6]
[354445902,1740502232562,-165.611,0.00024369,6]
[354445903,1740502232572,-212.71681492,0.000249,4]
[354445904,1740502232582,-650.0,0.00025,2]
[354445905,1740502232591,-171.2,0.00026849,2]
[354445906,1740502232600,-500.0,0.00031699,2]
[354445907,1740502232610,-162.76,0.00031839,2]
[354445908,1740502232619,-2326.98251975,0.00032853,2]
[354445909,1740502232629,-450.80334937,0.00032853,2]
[354445910,1740502232641,-49.18665063,0.00032853,2]
[354445911,1740502232650,-814.59643075,0.000344,2]
[354445912,1740502232662,-2047.2131,0.0003441,2]
[354445913,1740502232671,-150.0,0.00034499,2]
[354445914,1740502232680,-1785.11518161,0.000345,120]
[354445915,1740502232692,-372.55677188,0.000345,120]
[354445916,1740502232703,-1338.94,0.000345,120]
[354445917,1740502232715,-1564.16322837,0.000345,120]
[354445918,1740502232730,-436.72,0.000345,120]
[354445919,1740502232745,-709.35239291,0.000345,120]
[354445920,1740502232761,-8703.57680433,0.000345,120]
[354445921,1740502232800,-89.5656209,0.000345,120]
[354445922,1740502232810,-2328.08315992,0.000345,120]
[354445923,1740502232822,-500.0,0.000345,120]
[354445924,1740502232838,-848.12346839,0.000345,120]
[354446063,1740502238332,-6265.63227047,0.000345,120]
[354446064,1740502238344,-398.92,0.000345,120]
[354446065,1740502238387,-1200.0,0.000345,120]
[354446066,1740502238398,-1113.81235035,0.000345,120]
[354446067,1740502238441,-2345.42875087,0.000345,120]
[354446068,1740502238451,-15000.0,0.00034505,120]
[354446069,1740502238460,-15000.0,0.0003451,120]
[354446070,1740502238469,-150.0,0.00034548,10]
[354446071,1740502238479,-683.88000619,0.00037729,2]
[354446072,1740502238488,-1977.93,0.0003792,2]
[354446073,1740502238497,-243.32606377,0.00037941,120]
[354446074,1740502238519,-870.01380108,0.00037941,120]
[354446075,1740502238538,-886.66013515,0.00037941,120]
[354446076,1740502238547,-190.52979384,0.00037944,2]
[354446077,1740502238604,-59.47020616,0.00037944,2]
[354446078,1740502238613,-1285.65924604,0.00038011,2]
[354446079,1740502238626,-1800.0,0.00038011,2]
[354446088,1740502240399,-981.06075396,0.00038011,2]
[354446089,1740502240410,-3326.49968322,0.00038044,2]
[354446090,1740502240423,-3107.85901998,0.00038044,2]
[354446091,1740502240434,-17465.6412968,0.00038044,2]
[354446092,1740502240444,-200.0,0.00038058,2]
[354446093,1740502240454,-533.08,0.0003826,2]
[354446094,1740502240464,-150.0,0.00038261,2]
[354446095,1740502240474,-178.24,0.00038261,2]
[354446096,1740502240484,-500.0,0.00038271,2]
[354446097,1740502240494,-293.02,0.00038791,120]
[354446098,1740502240503,-1500.0,0.00039013,2]
[354446099,1740502240513,-364.51,0.00039205,2]
[354446100,1740502240522,-641.0,0.00039727,2]
[354446101,1740502240531,-438.66,0.00039727,2]
[354446102,1740502240541,-4376.0,0.0003975,117]
[354446103,1740502240551,-189.69,0.00039978,120]
[354446104,1740502240561,-155.16,0.00040018,2]
[354446105,1740502240571,-1000.0,0.00040272,2]
[354446106,1740502240581,-613.0,0.00040301,2]
[354446107,1740502240591,-533.08,0.00040524,2]
[354446108,1740502240600,-450.0,0.0004097,3]
[354446109,1740502240610,-5800.0,0.00041369,14]
[354446110,1740502240619,-500.0,0.00041434,120]
[354446111,1740502240628,-502.0,0.00042438,2]
[354446112,1740502240637,-641.0,0.00042727,2]
[354446113,1740502240647,-533.08,0.00042788,2]
[354446114,1740502240656,-500.0,0.00043167,120]
[354446115,1740502240811,-200.0,0.000433,120]
[354446116,1740502240822,-500.0,0.000438,15]
[354446117,1740502240832,-5452.90501131,0.0004389,15]
[354446118,1740502240841,-2500.0,0.0004389,2]
[354446119,1740502240851,-5076.54660873,0.00043899,15]
[354446120,1740502240860,-328.25370774,0.00043899,2]
[354446121,1740502240869,-1000.0,0.000439,16]
[354446122,1740502240879,-7500.0,0.000439,3]